fUST/lending_fUST_20250210
["ID","MTS","AMOUNT","RATE_DAILY","PERIOD"]
[352606011,1739194246655,-151.0,0.00011643,2]
[352606012,1739194246665,-500.0,0.00011643,2]
[352606013,1739194246676,-500.0,0.00011643,2]
[352606014,1739194246686,-151.0,0.00011643,2]
[352606015,1739194246695,-500.0,0.00011643,2]
[352606016,1739194246706,-500.0,0.00011643,2]
[352606017,1739194246716,-500.0,0.00011643,2]
[352606018,1739194246892,-1450.36,0.00011643,2]
[352606019,1739194246908,-500.0,0.00011643,2]
[352606020,1739194246919,-910.41,0.00011643,2]
[352606021,1739194246930,-361.95307672,0.0001168,2]
[352606022,1739194246940,-1654.16161957,0.00011715,2]
[352606023,1739194246949,-784.52277104,0.00011739,2]
[352606024,1739194246959,-500.0,0.0001178,2]
[352606025,1739194246968,-500.0,0.0001178,2]
[352606026,1739194246978,-500.0,0.0001178,2]
[352606027,1739194246987,-575.36,0.0001178,2]
[352606028,1739194246997,-616.55,0.0001178,2]
[352606029,1739194247007,-596.89,0.0001178,2]
[352606030,1739194247017,-512.6,0.0001178,2]
[352606031,1739194247027,-780.446601,0.0001178,2]
[352606032,1739194247039,-780.446601,0.0001178,2]
[352606033,1739194247049,-500.0,0.0001178,2]
[352606034,1739194247059,-936.53,0.0001178,2]
[352606035,1739194247069,-337.94241,0.0001178,2]
[352606036,1739194247079,-500.0,0.0001178,2]
[352606037,1739194247088,-337.94241,0.0001178,2]
[352606038,1739194247099,-151.0,0.0001178,2]
[352606039,1739194247110,-686.3,0.0001178,2]
[352606040,1739194247120,-500.0,0.0001178,2]
[352606041,1739194247130,-500.0,0.0001178,2]
[352606042,1739194247140,-151.0,0.0001178,2]
[352606043,1739194247150,-151.0,0.0001178,2]
[352606044,1739194247160,-500.0,0.0001178,2]
[352606045,1739194247170,-500.0,0.0001178,2]
[352606046,1739194247181,-224.02,0.0001178,2]
[352606047,1739194247194,-272.884316,0.0001178,2]
[352606048,1739194247204,-272.884316,0.0001178,2]
[352606049,1739194247214,-500.0,0.0001178,2]
[352606050,1739194247224,-500.0,0.0001178,2]
[352606051,1739194247234,-500.0,0.0001178,2]
[352606052,1739194247243,-500.0,0.0001178,2]
[352606053,1739194247253,-590.34,0.0001178,2]
[352606054,1739194247262,-500.0,0.0001178,2]
[352606055,1739194247273,-597.8535654,0.0001178,2]
[352606056,1739194247282,-620.68,0.0001178,2]
[352606057,1739194247291,-151.0,0.0001178,2]
[352606058,1739194247301,-500.0,0.0001178,2]
[352606059,1739194247310,-151.234386,0.0001178,2]
[352606060,1739194247320,-500.0,0.0001178,2]
[352606061,1739194247329,-500.0,0.0001178,2]
[352606062,1739194247338,-500.0,0.0001178,2]
[352606063,1739194247349,-151.0,0.0001178,2]
[352606064,1739194247359,-342.045788,0.0001178,2]
[352606065,1739194247368,-342.045788,0.0001178,2]
[352606066,1739194247378,-500.0,0.0001178,2]
[352606067,1739194247387,-650.3,0.0001178,2]
[352606068,1739194247397,-701.39,0.0001178,2]
[352606069,1739194247407,-500.0,0.0001178,2]
[352606070,1739194247416,-516.28,0.0001178,2]
[352606071,1739194247426,-500.0,0.0001178,2]
[352606072,1739194247436,-500.0,0.0001178,2]
[352606073,1739194247446,-6667.34,0.0001178,2]
[352606074,1739194247456,-500.0,0.0001178,2]
[352606075,1739194247465,-500.0,0.0001178,2]
[352606076,1739194247475,-500.0,0.0001178,2]
[352606077,1739194247484,-685.71,0.0001178,2]
[352606078,1739194247493,-2060.22,0.0001178,2]
[352606079,1739194247502,-678.22,0.0001178,2]
[352606080,1739194247512,-500.0,0.0001178,2]
[352606081,1739194247522,-500.0,0.0001178,2]
[352606082,1739194247530,-500.0,0.0001178,2]
[352606083,1739194247540,-500.0,0.0001178,2]
[352606084,1739194247549,-500.0,0.0001178,2]
[352606085,1739194247558,-151.0,0.0001178,2]
[352606086,1739194247567,-561.55,0.0001178,2]
[352606087,1739194247576,-500.0,0.0001178,2]
[352606088,1739194247586,-500.0,0.0001178,2]
[352606089,1739194247595,-3050.95,0.0001178,2]
[352606090,1739194247605,-1317.56,0.0001178,2]
[352606091,1739194247614,-500.0,0.0001178,2]
[352606092,1739194247623,-643.03,0.0001178,2]
[352606093,1739194247632,-1732.61,0.0001178,2]
[352606094,1739194247642,-500.0,0.0001178,2]
[352606095,1739194247652,-500.0,0.0001178,2]
[352606096,1739194247661,-1505.42,0.0001178,2]
[352606097,1739194247671,-500.0,0.0001178,2]
[352606098,1739194247681,-6262.42,0.0001178,2]
[352606099,1739194247691,-500.0,0.0001178,2]
[352606100,1739194247700,-500.0,0.0001178,2]
[352606101,1739194247711,-1392.18,0.0001178,2]
[352606102,1739194247721,-500.0,0.0001178,2]
[352606103,1739194247731,-1207.83,0.0001178,2]
[352606104,1739194247741,-500.0,0.0001178,2]
[352606105,1739194247751,-801.78,0.0001178,2]
[352606106,1739194247761,-712.93,0.0001178,2]
[352606107,1739194247771,-15034.51,0.0001178,2]
[352606108,1739194247780,-683.87,0.0001178,2]
[352606109,1739194247790,-500.0,0.0001178,2]
[352606110,1739194247801,-500.0,0.0001178,2]
[352606111,1739194247809,-1356.11,0.0001178,2]
[352606112,1739194247819,-810.23,0.0001178,2]
[352606113,1739194247829,-2907.54,0.0001178,2]
[352606114,1739194247839,-500.0,0.0001178,2]
[352606115,1739194247849,-789.76,0.0001178,2]
[352606116,1739194247859,-500.0,0.0001178,2]
[352606117,1739194247868,-500.0,0.0001178,2]
[352606118,1739194247879,-500.0,0.0001178,2]
[352606119,1739194247888,-500.0,0.0001178,2]
[352606120,1739194247897,-500.0,0.0001178,2]
[352606121,1739194247906,-1450.36,0.0001178,2]
[352606122,1739194247916,-500.0,0.0001178,2]
[352606123,1739194247925,-910.41,0.0001178,2]
[352606124,1739194247936,-151.0,0.000119,2]
[352606125,1739194247946,-500.0,0.00011917,2]
[352606126,1739194247957,-151.0,0.00011917,2]
[352606127,1739194247967,-151.0,0.00011917,2]
[352606128,1739194247977,-500.0,0.00011917,2]
[352606129,1739194247987,-151.0,0.00011917,2]
[352606130,1739194247997,-500.0,0.00011917,2]
[352606131,1739194248007,-575.36,0.00011917,2]
[352606132,1739194248017,-616.55,0.00011917,2]
[352606133,1739194248027,-360.290292,0.00011917,2]
[352606134,1739194248037,-151.0,0.00011917,2]
[352606135,1739194248047,-596.89,0.00011917,2]
[352606136,1739194248058,-512.6,0.00011917,2]
[352606137,1739194248068,-151.0,0.00011917,2]
[352606138,1739194248078,-500.0,0.00011917,2]
[352606139,1739194248088,-936.53,0.00011917,2]
[352606140,1739194248098,-500.0,0.00011917,2]
[352606141,1739194248108,-151.0,0.00011917,2]
[352606142,1739194248118,-151.24722,0.00011917,2]
[352606143,1739194248129,-686.3,0.00011917,2]
[352606144,1739194248140,-500.0,0.00011917,2]
[352606145,1739194248151,-500.0,0.00011917,2]
[352606146,1739194248162,-500.0,0.00011917,2]
[352606147,1739194248172,-500.0,0.00011917,2]
[352606148,1739194248190,-500.0,0.00011917,2]
[352606149,1739194248201,-500.0,0.00011917,2]
[352606150,1739194248212,-500.87565422,0.00011917,2]
[352606151,1739194248223,-500.0,0.00011917,2]
[352606152,1739194248235,-590.34,0.00011917,2]
[352606153,1739194248245,-500.0,0.00011917,2]
[352606154,1739194248256,-500.0,0.00011917,2]
[352606155,1739194248267,-500.0,0.00011917,2]
[352606156,1739194248278,-500.0,0.00011917,2]
[352606157,1739194248288,-477.62032581,0.00011917,2]
[352606158,1739194248299,-580.12,0.00011917,2]
[352606159,1739194248309,-650.3,0.00011917,2]
[352606160,1739194248321,-701.39,0.00011917,2]
[352606161,1739194248331,-500.0,0.00011917,2]
[352606162,1739194248342,-516.28,0.00011917,2]
[352606163,1739194248353,-500.0,0.00011917,2]
[352606164,1739194248363,-500.0,0.00011917,2]
[352606165,1739194248375,-6667.34,0.00011917,2]
[352606166,1739194248385,-500.0,0.00011917,2]
[352606167,1739194248397,-500.0,0.00011917,2]
[352606168,1739194248407,-500.0,0.00011917,2]
[352606169,1739194248417,-685.71,0.00011917,2]
[352606170,1739194248428,-2060.22,0.00011917,2]
[352606171,1739194248440,-678.22,0.00011917,2]
[352606172,1739194248451,-500.0,0.00011917,2]
[352606173,1739194248462,-423.12021039,0.00011917,2]
[352606174,1739194248472,-500.0,0.00011917,2]
[352606175,1739194248483,-500.0,0.00011917,2]
[352606176,1739194248494,-561.55,0.00011917,2]
[352606177,1739194248505,-500.0,0.00011917,2]
[352606178,1739194248516,-3050.95,0.00011917,2]
[352606179,1739194248526,-151.0,0.00011917,2]
[352606180,1739194248536,-151.0,0.00011917,2]
[352606181,1739194248548,-1317.56,0.00011917,2]
[352606182,1739194248559,-151.0,0.00011917,2]
[352606183,1739194248569,-500.0,0.00011917,2]
[352606184,1739194248579,-643.03,0.00011917,2]
[352606185,1739194248591,-151.0,0.00011917,2]
[352606186,1739194248601,-1732.61,0.00011917,2]
[352606187,1739194248613,-500.0,0.00011917,2]
[352606188,1739194248623,-1505.42,0.00011917,2]
[352606189,1739194248636,-151.056789,0.00011917,2]
[352606190,1739194248646,-500.0,0.00011917,2]
[352606191,1739194248657,-151.056789,0.00011917,2]
[352606192,1739194248668,-6262.42,0.00011917,2]
[352606193,1739194248680,-500.0,0.00011917,2]
[352606194,1739194248690,-317.23,0.00011917,2]
[352606195,1739194248702,-1392.18,0.00011917,2]
[352606196,1739194248714,-500.0,0.00011917,2]
[352606197,1739194248726,-1207.83,0.00011917,2]
[352606198,1739194248737,-500.0,0.00011917,2]
[352606199,1739194248747,-801.78,0.00011917,2]
[352606200,1739194248762,-712.93,0.00011917,2]
[352606201,1739194248774,-15034.51,0.00011917,2]
[352606202,1739194248785,-683.87,0.00011917,2]
[352606203,1739194248797,-500.0,0.00011917,2]
[352606204,1739194248808,-500.0,0.00011917,2]
[352606205,1739194248818,-1356.11,0.00011917,2]
[352606206,1739194248829,-810.23,0.00011917,2]
[352606207,1739194248840,-2907.54,0.00011917,2]
[352606208,1739194248851,-151.0,0.00011917,2]
[352606209,1739194248863,-500.0,0.00011917,2]
[352606210,1739194248875,-789.76,0.00011917,2]
[352606211,1739194248885,-151.0,0.00011917,2]
[352606212,1739194248897,-500.0,0.00011917,2]
[352606213,1739194248908,-500.0,0.00011917,2]
[352606214,1739194248919,-151.0,0.00011917,2]
[352606215,1739194248931,-500.0,0.00011917,2]
[352606216,1739194248942,-500.0,0.00011917,2]
[352606217,1739194248952,-500.0,0.00011917,2]
[352606218,1739194248962,-1450.36,0.00011917,2]
[352606219,1739194248971,-194.020004,0.00011917,2]
[352606220,1739194248981,-1004.93731554,0.0001195,2]
[352606221,1739194248992,-1000.0,0.0001195,2]
[352606222,1739194249002,-1031.26523494,0.00011962,2]
[352606223,1739194249014,-1000.0,0.00011977,2]
[352606224,1739194249025,-502.27251224,0.00011977,2]
[352606225,1739194249035,-1000.0,0.00011977,2]
[352606226,1739194249046,-500.0,0.00011977,2]
[352606227,1739194249057,-1000.0,0.00011993,2]
[352606228,1739194249066,-151.0,0.00012,2]
[352606229,1739194249077,-500.0,0.00012012,2]
[352606230,1739194249087,-500.0,0.00012013,2]
[352606231,1739194249097,-361.95307672,0.00012022,2]
[352606232,1739194249108,-500.0,0.00012037,2]
[352606233,1739194249121,-500.0,0.00012054,2]
[352606234,1739194249133,-500.0,0.00012054,2]
[352606235,1739194249144,-500.0,0.00012054,2]
[352606236,1739194249154,-575.36,0.00012054,2]
[352606237,1739194249165,-616.55,0.00012054,2]
[352606238,1739194249177,-596.89,0.00012054,2]
[352606239,1739194249190,-512.6,0.00012054,2]
[352606240,1739194249200,-500.0,0.00012054,2]
[352606241,1739194249211,-936.53,0.00012054,2]
[352606242,1739194249223,-500.0,0.00012054,2]
[352606243,1739194249235,-686.3,0.00012054,2]
[352606244,1739194249246,-500.0,0.00012054,2]
[352606245,1739194249257,-327.43,0.00012054,2]
[352606246,1739194249271,-500.0,0.00012054,2]
[352606247,1739194249282,-500.0,0.00012054,2]
[352606248,1739194249293,-151.0,0.00012054,2]
[352606249,1739194249305,-233.142362,0.00012054,2]
[352606250,1739194249317,-233.142362,0.00012054,2]
[352606251,1739194249329,-272.884316,0.00012054,2]
[352606252,1739194249341,-272.884316,0.00012054,2]
[352606253,1739194249352,-500.0,0.00012054,2]
[352606254,1739194249364,-500.0,0.00012054,2]
[352606255,1739194249376,-500.0,0.00012054,2]
[352606256,1739194249387,-590.34,0.00012054,2]
[352606257,1739194249398,-500.0,0.00012054,2]
[352606258,1739194249409,-151.0,0.00012054,2]
[352606259,1739194249420,-500.0,0.00012054,2]
[352606260,1739194249433,-500.0,0.00012054,2]
[352606261,1739194249443,-500.0,0.00012054,2]
[352606262,1739194249455,-151.700334,0.00012054,2]
[352606263,1739194249467,-342.045788,0.00012054,2]
[352606264,1739194249479,-342.045788,0.00012054,2]
[352606265,1739194249491,-650.3,0.00012054,2]
[352606266,1739194249502,-701.39,0.00012054,2]
[352606267,1739194249513,-500.0,0.00012054,2]
[352606268,1739194249525,-516.28,0.00012054,2]
[352606269,1739194249538,-500.0,0.00012054,2]
[352606270,1739194249549,-500.0,0.00012054,2]
[352606271,1739194249560,-6667.34,0.00012054,2]
[352606272,1739194249571,-500.0,0.00012054,2]
[352606273,1739194249583,-500.0,0.00012054,2]
[352606274,1739194249594,-500.0,0.00012054,2]
[352606275,1739194249604,-685.71,0.00012054,2]
[352606276,1739194249620,-2060.22,0.00012054,2]
[352606277,1739194249630,-678.22,0.00012054,2]
[352606278,1739194249641,-500.0,0.00012054,2]
[352606279,1739194249651,-458.95,0.00012054,2]
[352606280,1739194249662,-151.602746,0.00012054,2]
[352606281,1739194249671,-561.55,0.00012054,2]
[352606282,1739194249684,-500.0,0.00012054,2]
[352606283,1739194249695,-3050.95,0.00012054,2]
[352606284,1739194249704,-1317.56,0.00012054,2]
[352606285,1739194249715,-500.0,0.00012054,2]
[352606286,1739194249725,-643.03,0.00012054,2]
[352606287,1739194249735,-1732.61,0.00012054,2]
[352606288,1739194249745,-500.0,0.00012054,2]
[352606289,1739194249754,-1505.42,0.00012054,2]
[352606290,1739194249764,-500.0,0.00012054,2]
[352606291,1739194249774,-6262.42,0.00012054,2]
[352606292,1739194249784,-500.0,0.00012054,2]
[352606293,1739194249801,-1392.18,0.00012054,2]
[352606294,1739194249810,-500.0,0.00012054,2]
[352606295,1739194249819,-1207.83,0.00012054,2]
[352606296,1739194249829,-500.0,0.00012054,2]
[352606297,1739194249838,-801.78,0.00012054,2]
[352606298,1739194249848,-712.93,0.00012054,2]
[352606299,1739194249857,-15034.51,0.00012054,2]
[352606300,1739194249866,-683.87,0.00012054,2]
[352606301,1739194249876,-500.0,0.00012054,2]
[352606302,1739194249885,-500.0,0.00012054,2]
[352606303,1739194249895,-1356.11,0.00012054,2]
[352606304,1739194249905,-810.23,0.00012054,2]
[352606305,1739194249914,-2907.54,0.00012054,2]
[352606306,1739194249923,-500.0,0.00012054,2]
[352606307,1739194249935,-789.76,0.00012054,2]
[352606308,1739194249945,-373.94114857,0.00012054,2]
[352606309,1739194249954,-500.0,0.00012054,2]
[352606310,1739194249964,-500.0,0.00012054,2]
[352606311,1739194249974,-500.0,0.00012054,2]
[352606312,1739194249983,-500.0,0.00012054,2]
[352606313,1739194249994,-1450.36,0.00012054,2]
[352606314,1739194250004,-500.0,0.00012191,2]
[352606315,1739194250013,-500.0,0.00012191,2]
[352606316,1739194250022,-500.0,0.00012191,2]
[352606317,1739194250032,-575.36,0.00012191,2]
[352606318,1739194250041,-616.55,0.00012191,2]
[352606319,1739194250050,-596.89,0.00012191,2]
[352606320,1739194250060,-512.6,0.00012191,2]
[352606321,1739194250069,-780.446601,0.00012191,2]
[352606322,1739194250078,-780.446601,0.00012191,2]
[352606323,1739194250185,-500.0,0.00012191,2]
[352606324,1739194250196,-936.53,0.00012191,2]
[352606325,1739194250205,-337.94241,0.00012191,2]
[352606326,1739194250215,-500.0,0.00012191,2]
[352606327,1739194250224,-337.94241,0.00012191,2]
[352606328,1739194250235,-151.0,0.00012191,2]
[352606329,1739194250244,-686.3,0.00012191,2]
[352606330,1739194250253,-500.0,0.00012191,2]
[352606331,1739194250263,-151.0,0.00012191,2]
[352606332,1739194250272,-500.0,0.00012191,2]
[352606333,1739194250281,-500.0,0.00012191,2]
[352606334,1739194250290,-500.0,0.00012191,2]
[352606335,1739194250300,-500.0,0.00012191,2]
[352606336,1739194250309,-500.0,0.00012191,2]
[352606337,1739194250318,-590.34,0.00012191,2]
[352606338,1739194250328,-500.0,0.00012191,2]
[352606339,1739194250337,-500.0,0.00012191,2]
[352606340,1739194250347,-500.0,0.00012191,2]
[352606341,1739194250356,-500.0,0.00012191,2]
[352606342,1739194250366,-650.3,0.00012191,2]
[352606343,1739194250375,-701.39,0.00012191,2]
[352606344,1739194250384,-500.0,0.00012191,2]
[352606345,1739194250394,-516.28,0.00012191,2]
[352606346,1739194250404,-500.0,0.00012191,2]
[352606347,1739194250414,-6667.34,0.00012191,2]
[352606348,1739194250423,-500.0,0.00012191,2]
[352606349,1739194250433,-500.0,0.00012191,2]
[352606350,1739194250443,-500.0,0.00012191,2]
[352606351,1739194250453,-685.71,0.00012191,2]
[352606352,1739194250463,-2060.22,0.00012191,2]
[352606353,1739194250472,-678.22,0.00012191,2]
[352606354,1739194250482,-267.49,0.00012191,2]
[352606355,1739194250491,-561.55,0.00012191,2]
[352606356,1739194250500,-500.0,0.00012191,2]
[352606357,1739194250510,-3050.95,0.00012191,2]
[352606358,1739194250519,-151.0,0.00012191,2]
[352606359,1739194250528,-151.0,0.00012191,2]
[352606360,1739194250537,-1317.56,0.00012191,2]
[352606361,1739194250546,-151.0,0.00012191,2]
[352606362,1739194250555,-500.0,0.00012191,2]
[352606363,1739194250564,-643.03,0.00012191,2]
[352606364,1739194250574,-277.201776,0.00012191,2]
[352606365,1739194250583,-1732.61,0.00012191,2]
[352606366,1739194250592,-500.0,0.00012191,2]
[352606367,1739194250602,-1505.42,0.00012191,2]
[352606368,1739194250613,-151.056789,0.00012191,2]
[352606369,1739194250622,-151.056789,0.00012191,2]
[352606370,1739194250632,-6262.42,0.00012191,2]
[352606371,1739194250642,-500.0,0.00012191,2]
[352606372,1739194250651,-1392.18,0.00012191,2]
[352606373,1739194250660,-500.0,0.00012191,2]
[352606374,1739194250669,-1207.83,0.00012191,2]
[352606375,1739194250678,-500.0,0.00012191,2]
[352606376,1739194250687,-801.78,0.00012191,2]
[352606377,1739194250696,-712.93,0.00012191,2]
[352606378,1739194250705,-15034.51,0.00012191,2]
[352606379,1739194250715,-683.87,0.00012191,2]
[352606380,1739194250724,-500.0,0.00012191,2]
[352606381,1739194250733,-500.0,0.00012191,2]
[352606382,1739194250744,-1356.11,0.00012191,2]
[352606383,1739194250753,-810.23,0.00012191,2]
[352606384,1739194250762,-2907.54,0.00012191,2]
[352606385,1739194250772,-500.0,0.00012191,2]
[352606386,1739194250781,-789.76,0.00012191,2]
[352606387,1739194250790,-151.0,0.00012191,2]
[352606388,1739194250799,-500.0,0.00012191,2]
[352606389,1739194250808,-151.0,0.00012191,2]
[352606390,1739194250818,-254.66862441,0.00012191,2]
[352606391,1739194250827,-500.0,0.00012191,2]
[352606392,1739194250836,-500.0,0.00012191,2]
[352606393,1739194250845,-1450.36,0.00012191,2]
[352606394,1739194250854,-151.0,0.000122,2]
[352606395,1739194250863,-151.0,0.00012328,2]
[352606396,1739194250872,-500.0,0.00012328,2]
[352606397,1739194250881,-151.0,0.00012328,2]
[352606398,1739194250890,-151.0,0.00012328,2]
[352606399,1739194250900,-500.0,0.00012328,2]
[352606400,1739194250913,-151.0,0.00012328,2]
[352606401,1739194250922,-500.0,0.00012328,2]
[352606402,1739194250932,-575.36,0.00012328,2]
[352606403,1739194250941,-616.55,0.00012328,2]
[352606404,1739194250949,-360.290292,0.00012328,2]
[352606405,1739194250958,-360.290292,0.00012328,2]
[352606406,1739194250967,-151.0,0.00012328,2]
[352606407,1739194250976,-596.89,0.00012328,2]
[352606408,1739194250986,-512.6,0.00012328,2]
[352606409,1739194250995,-151.0,0.00012328,2]
[352606410,1739194251006,-500.0,0.00012328,2]
[352606411,1739194251015,-936.53,0.00012328,2]
[352606412,1739194251024,-500.0,0.00012328,2]
[352606413,1739194251033,-151.0,0.00012328,2]
[352606414,1739194251042,-686.3,0.00012328,2]
[352606415,1739194251052,-500.0,0.00012328,2]
[352606416,1739194251061,-500.0,0.00012328,2]
[352606417,1739194251070,-567.62073265,0.00012328,2]
[352606418,1739194251079,-272.884316,0.00012328,2]
[352606419,1739194251089,-272.884316,0.00012328,2]
[352606420,1739194251098,-312.6197499,0.00012328,2]
[352606421,1739194251107,-500.0,0.00012328,2]
[352606422,1739194251116,-500.0,0.00012328,2]
[352606423,1739194251125,-590.34,0.00012328,2]
[352606424,1739194251135,-500.0,0.00012328,2]
[352606425,1739194251144,-151.0,0.00012328,2]
[352606426,1739194251153,-204.45577899,0.00012328,2]
[352606427,1739194251161,-500.0,0.00012328,2]
[352606428,1739194251170,-500.0,0.00012328,2]
[352606429,1739194251179,-342.045788,0.00012328,2]
[352606430,1739194251193,-342.045788,0.00012328,2]
[352606431,1739194251202,-650.3,0.00012328,2]
[352606432,1739194251211,-701.39,0.00012328,2]
[352606433,1739194251220,-218.6098342,0.00012328,2]
[352606434,1739194251230,-516.28,0.00012328,2]
[352606435,1739194251239,-500.0,0.00012328,2]
[352606436,1739194251248,-6667.34,0.00012328,2]
[352606437,1739194251257,-500.0,0.00012328,2]
[352606438,1739194251267,-500.0,0.00012328,2]
[352606439,1739194251276,-500.0,0.00012328,2]
[352606440,1739194251285,-685.71,0.00012328,2]
[352606441,1739194251294,-2060.22,0.00012328,2]
[352606442,1739194251303,-678.22,0.00012328,2]
[352606443,1739194251313,-561.55,0.00012328,2]
[352606444,1739194251322,-500.0,0.00012328,2]
[352606445,1739194251331,-3050.95,0.00012328,2]
[352606446,1739194251340,-1317.56,0.00012328,2]
[352606447,1739194251349,-500.0,0.00012328,2]
[352606448,1739194251358,-643.03,0.00012328,2]
[352606449,1739194251367,-1732.61,0.00012328,2]
[352606450,1739194251377,-500.0,0.00012328,2]
[352606451,1739194251386,-1505.42,0.00012328,2]
[352606452,1739194251396,-6262.42,0.00012328,2]
[352606453,1739194251406,-500.0,0.00012328,2]
[352606454,1739194251415,-1392.18,0.00012328,2]
[352606455,1739194251424,-500.0,0.00012328,2]
[352606456,1739194251434,-1207.83,0.00012328,2]
[352606457,1739194251443,-500.0,0.00012328,2]
[352606458,1739194251453,-801.78,0.00012328,2]
[352606459,1739194251463,-712.93,0.00012328,2]
[352606460,1739194251472,-15034.51,0.00012328,2]
[352606461,1739194251482,-683.87,0.00012328,2]
[352606462,1739194251491,-500.0,0.00012328,2]
[352606463,1739194251500,-500.0,0.00012328,2]
[352606464,1739194251510,-1356.11,0.00012328,2]
[352606465,1739194251519,-810.23,0.00012328,2]
[352606466,1739194251529,-2907.54,0.00012328,2]
[352606467,1739194251538,-500.0,0.00012328,2]
[352606468,1739194251547,-789.76,0.00012328,2]
[352606469,1739194251557,-500.0,0.00012328,2]
[352606470,1739194251566,-500.0,0.00012328,2]
[352606471,1739194251575,-492.7,0.00012328,2]
[352606472,1739194251585,-1450.36,0.00012328,2]
[352606473,1739194251594,-361.95307672,0.00012365,2]
[352606474,1739194251603,-151.0,0.000124,2]
[352606475,1739194251613,-500.0,0.00012465,2]
[352606476,1739194251622,-500.0,0.00012465,2]
[352606477,1739194251631,-500.0,0.00012465,2]
[352606478,1739194251640,-575.36,0.00012465,2]
[352606479,1739194251649,-616.55,0.00012465,2]
[352606480,1739194251658,-596.89,0.00012465,2]
[352606481,1739194251667,-512.6,0.00012465,2]
[352606482,1739194251676,-500.0,0.00012465,2]
[352606483,1739194251686,-936.53,0.00012465,2]
[352606484,1739194251695,-500.0,0.00012465,2]
[352606485,1739194251705,-686.3,0.00012465,2]
[352606486,1739194251713,-500.0,0.00012465,2]
[352606487,1739194251722,-500.0,0.00012465,2]
[352606488,1739194251731,-233.142362,0.00012465,2]
[352606489,1739194251741,-233.142362,0.00012465,2]
[352606490,1739194251750,-500.0,0.00012465,2]
[352606491,1739194251759,-500.0,0.00012465,2]
[352606492,1739194251768,-590.34,0.00012465,2]
[352606493,1739194251777,-500.0,0.00012465,2]
[352606494,1739194251786,-500.0,0.00012465,2]
[352606495,1739194251795,-500.0,0.00012465,2]
[352606496,1739194251804,-650.3,0.00012465,2]
[352606497,1739194251813,-701.39,0.00012465,2]
[352606498,1739194251822,-516.28,0.00012465,2]
[352606499,1739194251831,-500.0,0.00012465,2]
[352606500,1739194251841,-6667.34,0.00012465,2]
[352606501,1739194251850,-500.0,0.00012465,2]
[352606502,1739194251859,-500.0,0.00012465,2]
[352606503,1739194251869,-500.0,0.00012465,2]
[352606504,1739194251878,-685.71,0.00012465,2]
[352606505,1739194251887,-2060.22,0.00012465,2]
[352606506,1739194251896,-678.22,0.00012465,2]
[352606507,1739194251905,-561.55,0.00012465,2]
[352606508,1739194251915,-500.0,0.00012465,2]
[352606509,1739194251924,-3050.95,0.00012465,2]
[352606510,1739194251934,-151.0,0.00012465,2]